bitfinex/quotes_SOLUSD_20230702
["timestamp","ask_amount","ask_price","bid_price","bid_amount"]
[1688266364005,22.55398344,18.656,18.646,22.685]
[1688266364204,22.55398344,18.656,18.647,55.0]
[1688266366621,22.55398344,18.656,18.643,22.688]
[1688266367711,22.55398344,18.656,18.644,55.0]
[1688266369410,22.55398344,18.656,18.644,77.688]
[1688266375002,22.55398344,18.656,18.644,55.0]
[1688266375207,31.0584963,18.656,18.641,20.0]
[1688266375520,55.0,18.655,18.641,20.0]
[1688266375703,55.0,18.655,18.639,95.8305]
[1688266375704,187.603,18.651,18.64,20.0]
[1688266376217,187.603,18.651,18.637,42.696]
[1688266377001,187.603,18.651,18.638,55.0]
[1688266377206,187.603,18.651,18.639,20.0]
[1688266379221,187.603,18.651,18.639,42.694]
[1688266382525,81.067,18.651,18.639,42.694]
[1688266384519,81.067,18.651,18.639,22.694]
[1688266384825,89.56926321,18.651,18.637,22.695]
[1688266385005,22.685,18.647,18.637,22.695]
[1688266386114,22.685,18.647,18.632,26.89034067]
[1688266386320,22.685,18.647,18.633,55.0]
[1688266386505,22.685,18.647,18.635,22.698]
[1688266386711,22.685,18.647,18.636,55.0]
[1688266387821,22.685,18.647,18.632,22.702]
[1688266387822,31.18726321,18.647,18.632,22.702]
[1688266388016,31.18726321,18.647,18.633,55.0]
[1688266388915,31.18726321,18.647,18.633,77.7]
[1688266390514,31.18726321,18.647,18.631,92.2869]
[1688266390515,31.18726321,18.647,18.63,34.43]
[1688266390713,58.398,18.648,18.628,22.706]
[1688266390714,81.116,18.64,18.628,22.706]
[1688266392026,81.116,18.64,18.629,55.0]
[1688266392214,81.116,18.64,18.628,55.0]
[1688266395806,81.116,18.64,18.627,55.0]
[1688266396007,115.436,18.64,18.627,55.0]
[1688266396327,123.93826321,18.64,18.626,55.0]
[1688266396631,8.50226321,18.639,18.626,55.0]
[1688266396836,187.76,18.636,18.626,55.0]
[1688266398528,187.76,18.636,18.622,22.714]
[1688266399917,187.76,18.636,18.623,55.0]
[1688266401137,187.76,18.636,18.62,34.32]
[1688266401138,187.76,18.636,18.622,55.0]
[1688266401426,187.76,18.636,18.621,55.0]
[1688266405829,187.76,18.636,18.62,34.32]
[1688266406034,187.76,18.636,18.61,34.32]
[1688266406035,34.18,18.63,18.61,34.32]
[1688266406330,22.712,18.625,18.615,22.723]
[1688266406926,22.712,18.625,18.612,98.8054]
[1688266407834,22.712,18.625,18.612,121.5324]
[1688266408237,22.712,18.625,18.613,55.0]
[1688266409938,22.712,18.625,18.613,77.725]
[1688266414446,22.712,18.625,18.613,55.0]
[1688266416547,22.712,18.625,18.613,77.725]
[1688266418851,22.712,18.625,18.61,34.32]
[1688266419049,22.712,18.625,18.605,58.82513561]
[1688266419050,34.18,18.62,18.606,97.5871]
[1688266419254,81.22,18.616,18.607,1.15045177]
[1688266419440,81.22,18.616,18.6,45.15719922]
[1688266419748,81.22,18.616,18.604,22.736]
[1688266420543,81.22,18.616,18.605,55.0]
[1688266420847,81.22,18.616,18.605,77.735]
[1688266421160,22.722,18.616,18.605,77.735]
[1688266421357,22.722,18.616,18.605,22.735]
[1688266421654,22.722,18.616,18.604,22.737]
[1688266423149,22.722,18.616,18.605,55.0]
[1688266424258,22.722,18.616,18.604,55.0]
[1688266424943,22.722,18.616,18.606,22.733]
[1688266425252,22.722,18.616,18.604,55.0]
[1688266425438,22.722,18.616,18.605,22.735]
[1688266425644,22.722,18.616,18.606,55.0]
[1688266425954,22.722,18.616,18.609,22.73]
[1688266426250,22.722,18.616,18.61,89.32]
[1688266430865,22.722,18.616,18.61,112.049]
[1688266431445,34.18,18.623,18.61,112.049]
[1688266431648,58.473,18.624,18.611,20.0]
[1688266431952,58.473,18.624,18.61,112.049]
[1688266431953,22.717,18.621,18.61,34.32]
[1688266432162,22.717,18.621,18.605,22.734]
[1688266432163,34.18,18.62,18.605,22.734]
[1688266432459,81.22,18.616,18.605,22.734]
[1688266433445,81.22,18.616,18.606,55.0]
[1688266434158,81.22,18.616,18.606,77.734]
[1688266438660,22.722,18.616,18.606,77.734]
[1688266439058,22.722,18.616,18.61,34.32]
[1688266439369,22.721,18.617,18.611,77.727]
[1688266440463,22.721,18.617,18.61,34.32]
[1688266440664,22.721,18.617,18.608,22.731]
[1688266441765,81.215,18.617,18.603,95.055]
[1688266441968,81.215,18.617,18.604,56.09915296]
[1688266442149,81.215,18.617,18.604,55.0]
[1688266442467,81.215,18.617,18.607,22.732]
[1688266442666,81.215,18.617,18.608,77.731]
[1688266442849,81.215,18.617,18.608,22.731]
[1688266444153,22.721,18.617,18.608,22.731]
[1688266444353,22.721,18.617,18.61,34.32]
[1688266444555,22.719,18.619,18.612,22.727]
[1688266444753,22.718,18.62,18.612,22.727]
[1688266444967,22.718,18.62,18.611,22.728]
[1688266445659,22.718,18.62,18.614,22.724]
[1688266445875,34.32,18.627,18.614,22.724]
[1688266446063,58.458,18.629,18.615,55.0]
[1688266446372,22.712,18.625,18.616,22.722]
[1688266446578,22.712,18.625,18.615,55.0]
[1688266447459,22.712,18.625,18.615,77.723]
[1688266448252,22.712,18.625,18.61,34.32]
[1688266448574,22.717,18.621,18.611,42.727]
[1688266448769,22.717,18.621,18.611,20.0]
[1688266449283,22.717,18.621,18.611,42.728]
[1688266450078,22.717,18.621,18.612,55.0]
[1688266450373,22.717,18.621,18.613,22.725]
[1688266451176,22.717,18.621,18.612,22.727]
[1688266463387,22.717,18.621,18.611,42.728]
[1688266465982,34.18,18.62,18.611,20.0]
[1688266466183,22.72,18.618,18.611,22.728]
[1688266466388,22.72,18.618,18.612,20.0]
[1688266469281,22.72,18.618,18.612,42.726]
[1688266469484,22.728,18.624,18.612,42.726]
[1688266469686,26.37802536,18.625,18.612,42.726]
[1688266469988,58.467,18.626,18.612,42.726]
[1688266470189,55.0,18.625,18.612,42.726]
[1688266470584,66.96712,18.626,18.612,42.726]
[1688266470785,22.717,18.621,18.612,42.726]
[1688266472993,34.32,18.62,18.612,42.726]
[1688266473184,22.72,18.618,18.612,42.726]
[1688266473978,22.72,18.618,18.612,22.726]
[1688266474183,22.72,18.618,18.61,22.729]
[1688266475489,22.72,18.618,18.609,22.73]
[1688266476083,22.72,18.618,18.603,90.5024]
[1688266476282,55.0,18.617,18.604,2.35562386]
[1688266476492,22.725,18.614,18.606,22.733]
[1688266477785,22.725,18.614,18.603,90.5024]
[1688266477786,81.229,18.614,18.603,90.5024]
[1688266477999,81.229,18.614,18.604,22.736]
[1688266480501,22.725,18.614,18.605,55.0]
[1688266480794,72.546213,18.622,18.607,22.732]
[1688266481097,72.546213,18.622,18.605,220.329]
[1688266481098,22.717,18.621,18.615,22.723]
[1688266482082,22.717,18.621,18.613,22.724]
[1688266482284,22.717,18.621,18.614,55.0]
[1688266482483,22.717,18.621,18.614,77.724]
[1688266484804,58.448,18.632,18.614,136.228]
[1688266484992,22.711,18.625,18.615,5.34189944]
[1688266485303,22.711,18.625,18.618,22.719]
[1688266487203,22.711,18.625,18.614,55.0]
[1688266488886,22.711,18.625,18.614,22.724]
[1688266489107,22.711,18.625,18.615,55.0]
[1688266491296,22.711,18.625,18.615,77.723]
[1688266491485,55.0,18.624,18.606,149.9038]
[1688266491682,81.205,18.62,18.609,22.729]
[1688266492494,81.205,18.62,18.608,22.732]
[1688266493090,81.205,18.62,18.609,55.0]
[1688266493504,81.205,18.62,18.606,91.3768]
[1688266493505,81.205,18.62,18.606,114.1098]
[1688266493699,89.70150345,18.62,18.607,55.0]
[1688266493907,63.49650345,18.619,18.601,99.0364]
[1688266494090,81.23,18.614,18.602,24.88170203]
[1688266494401,81.23,18.614,18.602,42.738]
[1688266495098,81.23,18.614,18.603,55.0]
[1688266495297,81.23,18.614,18.603,77.737]
[1688266495610,81.23,18.614,18.603,55.0]
[1688266499809,81.23,18.614,18.601,99.0364]
[1688266499810,75.0,18.613,18.601,99.0364]
[1688266500004,81.248,18.61,18.601,99.0364]
[1688266500313,81.248,18.61,18.598,22.744]
[1688266501106,81.248,18.61,18.599,55.0]
[1688266501294,81.248,18.61,18.596,22.745]
[1688266502602,81.248,18.61,18.597,55.0]
[1688266503409,81.248,18.61,18.592,118.54909113]
[1688266503612,55.0,18.609,18.593,2.82676127]
[1688266503794,188.071,18.605,18.593,2.82676127]
[1688266503990,188.071,18.605,18.592,22.751]
[1688266504310,188.071,18.605,18.59,22.753]
[1688266504512,55.0,18.604,18.591,20.0]
[1688266504815,81.288,18.601,18.591,20.0]
[1688266505792,81.288,18.601,18.586,27.39958845]
[1688266505793,81.288,18.601,18.584,97.346]
[1688266505994,188.165,18.596,18.584,97.346]
[1688266506194,188.165,18.596,18.58,34.29]
[1688266506390,188.165,18.596,18.582,22.762]
[1688266506696,81.31,18.596,18.582,22.762]
[1688266508310,55.0,18.595,18.581,20.0]
[1688266508593,22.753,18.591,18.582,22.763]
[1688266510018,22.753,18.591,18.583,55.0]
[1688266510225,22.751,18.593,18.585,22.759]
[1688266512008,165.363,18.602,18.586,55.0]
[1688266512211,93.05145977,18.611,18.586,55.0]
[1688266512212,58.533,18.605,18.586,55.0]
[1688266512398,22.742,18.6,18.591,22.752]
[1688266512903,22.742,18.6,18.593,22.75]
[1688266513518,163.929,18.6,18.587,22.756]
[1688266513902,163.929,18.6,18.582,58.604]
[1688266514109,163.929,18.6,18.586,22.758]
[1688266514510,55.0,18.599,18.586,22.758]
[1688266514814,22.747,18.596,18.585,22.759]
[1688266519611,22.747,18.596,18.586,55.0]
[1688266519813,22.747,18.596,18.589,22.755]
[1688266520907,22.747,18.596,18.59,55.0]
[1688266521107,22.747,18.596,18.59,77.753]
[1688266521924,22.747,18.596,18.588,22.756]
[1688266522129,22.747,18.596,18.586,22.757]
[1688266522321,22.747,18.596,18.585,22.76]
[1688266522807,22.747,18.596,18.58,92.9]
[1688266523009,22.747,18.596,18.584,22.761]
[1688266525516,22.747,18.596,18.583,22.762]
[1688266525711,55.0,18.595,18.581,120.4744]
[1688266526009,55.0,18.595,18.582,20.0]
[1688266526010,188.209,18.591,18.582,20.0]
[1688266526416,188.209,18.591,18.58,22.765]
[1688266526727,188.209,18.591,18.581,20.0]
[1688266527421,81.33,18.591,18.581,20.0]
[1688266527627,81.33,18.591,18.581,42.765]
[1688266530130,81.33,18.591,18.571,145.4536]
[1688266530422,81.356,18.585,18.572,40.275]
[1688266530623,22.76,18.585,18.572,22.775]
[1688266532623,22.76,18.585,18.575,22.772]
[1688266533324,22.76,18.585,18.576,55.0]
[1688266533630,22.76,18.585,18.578,22.768]
[1688266533816,22.76,18.585,18.576,77.77]
[1688266534011,22.76,18.585,18.576,22.77]
[1688266534223,22.76,18.585,18.574,22.772]
[1688266534413,22.76,18.585,18.573,22.774]
[1688266534614,129.674,18.585,18.57,129.4835]
[1688266534927,129.674,18.585,18.571,20.0]
[1688266535523,129.674,18.585,18.568,20.0]
[1688266535937,129.674,18.585,18.569,55.0]
[1688266536118,129.674,18.585,18.57,20.0]
[1688266536437,129.674,18.585,18.572,22.775]
[1688266538331,129.674,18.585,18.572,21.775]
[1688266539236,129.674,18.585,18.572,20.775]
[1688266539536,22.76,18.585,18.573,55.0]
[1688266539716,27.34290725,18.591,18.576,22.77]
[1688266539921,27.34290725,18.591,18.577,55.0]
[1688266540222,22.76,18.585,18.578,22.768]
[1688266540833,31.19673044,18.594,18.578,22.768]
[1688266541037,22.755,18.59,18.579,55.0]
[1688266541734,22.755,18.59,18.579,77.767]
[1688266542646,22.765,18.594,18.579,77.767]
[1688266542943,22.753,18.591,18.583,22.762]
[1688266543535,22.753,18.591,18.58,54.07]
[1688266543840,22.753,18.591,18.581,55.0]
[1688266544044,22.753,18.591,18.58,22.766]
[1688266544436,22.753,18.591,18.581,20.0]
[1688266544627,22.753,18.591,18.581,42.764]
[1688266546030,22.753,18.591,18.582,55.0]
[1688266546229,22.753,18.591,18.584,22.76]
[1688266547332,22.753,18.591,18.582,55.0]
[1688266547333,22.753,18.591,18.582,22.762]
[1688266547529,22.753,18.591,18.569,396.8]
[1688266547530,22.753,18.591,18.571,106.99]
[1688266547745,55.0,18.59,18.573,97.4591]
[1688266548043,22.76,18.585,18.577,22.768]
[1688266548429,22.76,18.585,18.575,22.771]
[1688266550530,22.76,18.585,18.576,55.0]
[1688266550744,22.759,18.586,18.578,22.768]
[1688266550933,22.759,18.586,18.579,55.0]
[1688266551134,22.759,18.586,18.581,22.765]
[1688266551534,22.759,18.586,18.579,55.0]
[1688266551734,22.759,18.586,18.58,22.766]
[1688266551931,22.757,18.588,18.58,22.766]
[1688266553336,22.757,18.588,18.579,55.0]
[1688266553947,22.757,18.588,18.577,22.769]
[1688266555341,22.757,18.588,18.578,55.0]
[1688266555538,22.757,18.588,18.58,56.836]
[1688266555743,22.755,18.59,18.581,55.0]
[1688266556053,22.753,18.591,18.583,22.761]
[1688266556241,22.753,18.591,18.584,55.0]
[1688266556657,22.753,18.591,18.583,55.0]
[1688266557039,22.753,18.591,18.583,77.762]
[1688266557737,22.761,18.597,18.583,77.762]
[1688266557939,143.3079791,18.6,18.583,77.762]
[1688266558142,55.0,18.599,18.583,77.762]
[1688266558352,22.751,18.592,18.583,77.762]
[1688266560750,58.559,18.597,18.583,77.762]
[1688266560751,22.75,18.593,18.583,77.762]
[1688266561153,8.35923632,18.599,18.583,77.762]
[1688266561350,22.749,18.595,18.583,77.762]
[1688266562652,21.749,18.595,18.583,77.762]
[1688266564359,22.746,18.597,18.583,77.762]
[1688266567763,22.746,18.597,18.583,22.762]
[1688266569058,22.746,18.597,18.586,22.757]
[1688266571760,22.746,18.597,18.587,55.0]
[1688266572064,22.746,18.597,18.589,22.754]
[1688266573347,268.16949827,18.62,18.59,20.0]
[1688266573348,396.8,18.617,18.59,20.0]
[1688266573555,22.735,18.606,18.596,22.746]
[1688266573759,22.735,18.606,18.597,55.0]
[1688266573955,22.735,18.606,18.598,22.743]
[1688266574265,22.733,18.607,18.598,22.743]
[1688266574554,58.508,18.613,18.598,22.743]
[1688266574555,22.735,18.606,18.598,22.743]
[1688266575265,22.733,18.607,18.598,22.743]
[1688266575464,22.733,18.607,18.6,22.741]
[1688266575667,22.733,18.607,18.595,58.562]
[1688266575668,22.733,18.607,18.598,22.743]
[1688266577353,37.84590421,18.618,18.593,96.3104]
[1688266577354,22.729,18.61,18.602,22.739]
[1688266577555,22.729,18.61,18.604,22.736]
[1688266578867,22.728,18.611,18.604,22.736]
[1688266579487,58.48,18.622,18.604,22.736]
[1688266579777,22.722,18.617,18.61,22.729]
[1688266580156,22.722,18.617,18.609,22.73]
[1688266580369,31.08123632,18.617,18.609,22.73]
[1688266583068,31.08123632,18.617,18.605,55.0]
[1688266583069,8.35923632,18.616,18.605,55.0]
[1688266583370,22.726,18.613,18.606,22.733]
[1688266586875,22.726,18.613,18.606,22.734]
[1688266589259,22.726,18.613,18.601,58.545]
[1688266589462,22.726,18.613,18.605,22.735]
[1688266590367,22.724,18.614,18.605,22.735]
[1688266595379,22.724,18.614,18.603,22.737]
[1688266596067,22.729,18.61,18.603,22.737]
[1688266596882,22.728,18.612,18.603,22.737]
[1688266597466,22.728,18.612,18.604,55.0]
[1688266597672,22.725,18.614,18.607,22.733]
[1688266607689,22.725,18.614,18.602,20.0]
[1688266607883,22.725,18.614,18.605,22.734]
[1688266612093,22.725,18.614,18.605,81.266]
[1688266612298,22.723,18.616,18.606,55.0]
[1688266612501,58.473,18.624,18.609,22.73]
[1688266612796,58.473,18.624,18.61,55.0]
[1688266613096,58.473,18.624,18.614,22.724]
[1688266613097,22.718,18.62,18.614,22.724]
[1688266616788,22.718,18.62,18.612,22.726]
[1688266616996,22.718,18.62,18.61,22.728]
[1688266617195,22.718,18.62,18.607,94.8264]
[1688266617196,22.718,18.62,18.608,22.731]
[1688266622406,22.718,18.62,18.607,94.8264]
[1688266623810,22.718,18.62,18.6,61.52298553]
[1688266624112,22.718,18.62,18.607,22.732]
[1688266624300,22.718,18.62,18.608,77.731]
[1688266624611,22.718,18.62,18.608,22.731]
[1688266626091,22.718,18.62,18.602,150.9609]
[1688266626309,65.43723632,18.62,18.602,150.9609]
[1688266627021,65.43723632,18.62,18.604,22.736]
[1688266627222,65.43723632,18.62,18.605,55.0]
[1688266627419,65.43723632,18.62,18.606,22.734]
[1688266633323,28.08067496,18.619,18.606,22.734]
[1688266633619,22.723,18.616,18.606,22.734]
[1688266634508,22.723,18.616,18.607,55.0]
[1688266634823,22.723,18.616,18.609,22.73]
[1688266636501,34.39,18.62,18.609,22.73]
[1688266636704,22.718,18.62,18.61,55.0]
[1688266636910,22.718,18.62,18.613,22.726]
[1688266639624,22.718,18.62,18.61,55.0]
[1688266639924,22.718,18.62,18.611,22.728]
[1688266640928,22.737,18.624,18.612,20.0]
[1688266641126,22.716,18.621,18.615,22.722]
[1688266641432,22.737,18.624,18.615,22.722]
[1688266641433,22.714,18.623,18.615,22.722]
[1688266641615,101.15323632,18.63,18.615,22.722]
[1688266641616,58.462,18.628,18.615,22.722]
[1688266642012,22.737,18.627,18.615,22.722]
[1688266642316,22.715,18.622,18.615,22.722]
[1688266643606,22.715,18.622,18.612,42.726]
[1688266643805,22.715,18.622,18.612,20.0]
[1688266644032,22.715,18.622,18.611,20.0]
[1688266644823,22.715,18.622,18.612,22.726]
[1688266651827,22.713,18.624,18.613,55.0]
[1688266652022,22.713,18.624,18.616,22.722]
[1688266652235,22.713,18.624,18.617,55.0]
[1688266652535,22.713,18.624,18.619,22.718]
[1688266652939,171.61,18.64,18.619,22.718]
[1688266653128,55.0,18.63,18.62,109.04]
[1688266653322,22.7,18.634,18.623,22.713]
[1688266653635,97.4655,18.645,18.621,58.48]
[1688266653636,58.416,18.642,18.627,22.708]
[1688266653821,58.416,18.642,18.626,58.464]
[1688266653822,22.696,18.638,18.631,22.704]
[1688266655822,22.696,18.638,18.63,22.704]
[1688266656842,22.696,18.638,18.631,55.0]
[1688266657024,22.696,18.638,18.632,22.702]
[1688266658241,22.696,18.638,18.623,58.475]
[1688266658424,22.696,18.638,18.624,55.0]
[1688266659443,31.05523632,18.638,18.626,22.709]
[1688266659834,8.35923632,18.637,18.626,22.709]
[1688266660148,22.7,18.634,18.626,22.709]
[1688266665147,22.7,18.634,18.627,55.0]
[1688266665339,22.7,18.634,18.629,22.706]
[1688266666140,22.7,18.634,18.627,77.707]
[1688266666736,22.7,18.634,18.621,97.2902]
[1688266666737,22.7,18.634,18.625,22.71]
[1688266681963,42.72923632,18.64,18.625,22.71]
[1688266682261,22.697,18.637,18.629,22.706]
[1688266686463,22.697,18.637,18.629,22.705]
[1688266688263,22.697,18.637,18.625,22.71]
[1688266690357,22.697,18.637,18.626,55.0]
[1688266690574,22.697,18.637,18.628,22.706]
[1688266696970,22.697,18.637,18.626,55.0]
[1688266697172,22.697,18.637,18.621,124.59482421]
[1688266697382,22.697,18.637,18.625,22.711]
[1688266697771,22.697,18.637,18.621,120.0052]
[1688266698084,187.796,18.632,18.621,97.2902]
[1688266698260,187.796,18.632,18.618,22.718]
[1688266698463,22.708,18.628,18.618,22.718]
[1688266698672,22.708,18.628,18.612,98.2975]
[1688266699177,22.708,18.628,18.613,2.44525089]
[1688266699679,22.708,18.628,18.616,22.722]
[1688266699858,22.708,18.628,18.611,58.512]
[1688266700064,22.708,18.628,18.612,76.88063077]
[1688266700675,22.708,18.628,18.613,91.2047]
[1688266700888,22.708,18.628,18.616,22.721]
[1688266705184,22.708,18.628,18.601,53.27]
[1688266705365,22.708,18.628,18.6,171.87]
[1688266705366,130.83040668,18.627,18.602,125.00733642]
[1688266705571,130.83040668,18.627,18.603,58.536]
[1688266705572,115.575,18.62,18.603,58.536]
[1688266705970,123.93423632,18.62,18.604,14.14363642]
[1688266706380,63.35923632,18.619,18.605,22.734]
[1688266706582,22.723,18.615,18.605,22.734]
[1688266707572,22.723,18.615,18.603,22.738]
[1688266707895,55.0,18.614,18.601,22.739]
[1688266708093,22.729,18.611,18.602,20.0]
[1688266708479,22.729,18.611,18.602,42.739]
[1688266708679,22.729,18.611,18.602,22.739]
[1688266708980,22.729,18.611,18.6,22.741]
[1688266709178,22.729,18.611,18.599,22.742]
[1688266709383,81.24,18.611,18.599,22.742]
[1688266709689,81.24,18.611,18.598,22.743]
[1688266709892,81.24,18.611,18.596,93.7816]
[1688266710192,81.24,18.611,18.599,22.743]
[1688266710681,81.24,18.611,18.598,22.743]
[1688266710885,81.24,18.611,18.597,55.0]
[1688266711187,22.729,18.611,18.599,81.293]
[1688266711395,22.729,18.611,18.6,55.0]
[1688266711690,22.729,18.611,18.603,22.737]
[1688266712978,22.729,18.611,18.596,93.7816]
[1688266713175,22.729,18.611,18.601,22.74]
[1688266713980,22.729,18.611,18.599,22.742]
[1688266715977,22.729,18.611,18.602,22.739]
[1688266716584,22.729,18.611,18.605,22.735]
[1688266717504,58.502,18.617,18.606,55.0]
[1688266717691,58.474,18.624,18.611,22.727]
[1688266717885,106.689,18.625,18.611,22.727]
[1688266717886,22.721,18.617,18.611,22.727]
[1688266718791,22.721,18.617,18.609,22.729]
[1688266719292,22.721,18.617,18.607,116.7904]
[1688266722812,31.08023632,18.617,18.607,116.7904]
[1688266723108,22.726,18.613,18.605,22.735]
[1688266723297,22.726,18.613,18.603,22.737]
[1688266724781,22.726,18.613,18.601,93.9984]
[1688266724985,22.726,18.613,18.602,20.0]
[1688266725805,22.726,18.613,18.602,42.738]
[1688266727311,22.726,18.613,18.602,22.738]
[1688266727495,22.726,18.613,18.601,93.9984]
[1688266727496,75.0,18.612,18.601,93.9984]
[1688266727814,22.731,18.609,18.601,93.9984]
[1688266728110,22.731,18.609,18.6,22.74]
[1688266729506,22.731,18.609,18.601,55.0]
[1688266729706,22.731,18.609,18.603,22.737]
[1688266731510,22.731,18.609,18.599,58.551]
[1688266731511,22.731,18.609,18.601,22.739]
[1688266732107,22.731,18.609,18.604,22.736]
[1688266732288,20.0,18.631,18.604,22.736]
[1688266732289,22.729,18.611,18.604,22.736]
[1688266732612,22.727,18.612,18.607,22.732]
[1688266732912,22.727,18.612,18.605,22.734]
[1688266733299,22.727,18.612,18.602,97.2531]
[1688266733597,22.727,18.612,18.603,77.738]
[1688266736105,22.727,18.612,18.603,22.738]
[1688266740110,22.727,18.612,18.599,22.742]
[1688266740317,22.727,18.612,18.594,58.565]
[1688266740318,22.732,18.608,18.598,22.743]
[1688266742904,22.732,18.608,18.599,55.0]
[1688266743115,22.732,18.608,18.6,22.741]
[1688266743512,22.732,18.608,18.601,55.0]
[1688266743815,22.732,18.608,18.601,77.739]
[1688266744621,22.732,18.608,18.597,22.744]
[1688266745212,22.732,18.608,18.596,99.761]
[1688266745403,22.732,18.608,18.597,55.0]
[1688266747619,22.732,18.608,18.597,77.745]
[1688266748819,22.732,18.608,18.596,99.761]
[1688266749025,22.732,18.608,18.592,22.75]
[1688266749318,55.0,18.607,18.593,1.02295396]
[1688266749516,81.277,18.603,18.593,1.02295396]
[1688266749718,81.277,18.603,18.592,55.0]
[1688266749921,81.277,18.603,18.588,22.756]
[1688266750123,75.0,18.602,18.584,98.208]
[1688266750339,81.305,18.597,18.585,25.95269684]
[1688266750519,81.305,18.597,18.585,22.759]
[1688266751522,81.305,18.597,18.586,55.0]
[1688266751720,81.305,18.597,18.586,77.759]
[1688266752314,81.305,18.597,18.586,22.759]
[1688266755214,81.305,18.597,18.584,98.208]
[1688266755414,55.0,18.596,18.575,10.83719922]
[1688266755721,22.754,18.59,18.581,22.765]
[1688266756029,22.754,18.59,18.582,20.0]
[1688266759214,22.754,18.59,18.582,42.763]
[1688266760714,22.754,18.59,18.583,55.0]
[1688266760914,22.754,18.59,18.583,77.762]
[1688266761417,22.754,18.59,18.583,22.762]
[1688266761630,22.754,18.59,18.582,42.763]
[1688266764229,81.333,18.59,18.582,20.0]
[1688266764434,81.333,18.59,18.577,20.0]
[1688266764638,81.333,18.59,18.578,55.0]
[1688266764821,81.333,18.59,18.579,20.0]
[1688266765016,81.333,18.59,18.58,53.5]
[1688266765229,81.333,18.59,18.581,20.0]
[1688266765436,81.333,18.59,18.581,42.765]
[1688266767439,22.754,18.59,18.581,42.765]
[1688266767938,22.753,18.591,18.582,55.0]
[1688266768146,22.753,18.591,18.584,22.76]